Body Name,Body,Service Level,Expense Type,Expense Code,Narrative,Date,Transaction Number,Amount,Capital and Revenue,Supplier Name,Supplier ID
South Ribble Council,http://statistics.data.gov.uk/doc/local-authority/30UN,Chief Executive`s Management,Training Expense-Course Fees,1405,"Trainer expenses - travel, subsistence, and accommodation for Project Management Training 8 x 1 day workshops.",06/12/2019,0000451256,"1,975.00",Revenue,20/20 Business Insight Ltd,132987
South Ribble Council,http://statistics.data.gov.uk/doc/local-authority/30UN,Area 2 - Waste Transport/Eastern & Central Teams,Materials General,4040,per NAME REDACTED force through as po..41976 not enough to cover order but credit covers both invoices,06/12/2019,0000451365,483.32,Revenue,AA UK CV t/a Hydrair Truck & Trailer,132664
South Ribble Council,http://statistics.data.gov.uk/doc/local-authority/30UN,Area 2 - Waste Transport/Eastern & Central Teams,Materials General,4040,BRAKE CHAMBER PJ62UCH JFC 13765,11/12/2019,0000451495,275.00,Revenue,AA UK CV t/a Hydrair Truck & Trailer,132664
South Ribble Council,http://statistics.data.gov.uk/doc/local-authority/30UN,Information Services,Peripherals,4248,"Annual Licence Workspace 1st Jan 20  31st March 21  Annual Licence Workspace Premier Success Plan 1st Jan 20  31st Dec 20 -  4,687.00",11/12/2019,0000451494,"29,151.78",Revenue,Access Group Ltd,132303
South Ribble Council,http://statistics.data.gov.uk/doc/local-authority/30UN,Information Services,Capital Expenditure,C234,FlightPath Implementation,11/12/2019,0000451494,"8,550.00",Revenue,Access Group Ltd,132303
South Ribble Council,http://statistics.data.gov.uk/doc/local-authority/30UN,Planning,Operational Furniture & Equip,4010,Speaker and PA system with microphones and hearing loop for CPO Inquiry 19 and 20 November,04/12/2019,0000451407,476.00,Revenue,ACTIVE AV LTD,131458
South Ribble Council,http://statistics.data.gov.uk/doc/local-authority/30UN,Planning,Other Misc,4851,"2x Speaker PA system with 2xPC audio lead inc 3 days, Audio Technics system 10 pro 2.4ghz mic system 3 days, Install/DeRigg, Carriage",06/12/2019,0000451487,682.00,Revenue,ACTIVE AV LTD,131458
South Ribble Council,http://statistics.data.gov.uk/doc/local-authority/30UN,Property Services,Other Misc,4424,Please supply Sound System for the election as per quote 228 as per NAME REDACTED,20/12/2019,0000451679,382.00,Revenue,ACTIVE AV LTD,131458
South Ribble Council,http://statistics.data.gov.uk/doc/local-authority/30UN,Housing,Cap Grant- Improve Grants,C570,DFG WORKS TO BATHROOM AT ADDRESS REDACTED AS PER QUOTE 5325.00 CUSTOMER CONTRIBUTION 1298.85 GRANT 4026.15,04/12/2019,0000451460,"4,026.15",Revenue,AEB Building and Home Maintenance,132962
South Ribble Council,http://statistics.data.gov.uk/doc/local-authority/30UN,Planning,Consultancy Fees,4541,Preparation of Local Plan evidence base report and two meetings with NAMES REDACTED Period:50% invoice on completion,04/12/2019,0000451223,"2,400.00",Revenue,Alan Houghton Planning,132950
South Ribble Council,http://statistics.data.gov.uk/doc/local-authority/30UN,Healthy Communities,Sports Dev Expenses,4894,To supply dance coaching at various schools between October & December 2019,11/12/2019,0000451496,805.00,Revenue,Alexandra McKenna,132786
South Ribble Council,http://statistics.data.gov.uk/doc/local-authority/30UN,Revenues Plus,Financial,4811,po trans,11/12/2019,0000451522,896.17,Revenue,ALLPAY LTD,00122276
South Ribble Council,http://statistics.data.gov.uk/doc/local-authority/30UN,Revenues Plus,Financial,4811,paypoint,11/12/2019,0000451522,125.20,Revenue,ALLPAY LTD,00122276
South Ribble Council,http://statistics.data.gov.uk/doc/local-authority/30UN,Revenues Plus,Financial,4811,webconn,11/12/2019,0000451522,46.00,Revenue,ALLPAY LTD,00122276
South Ribble Council,http://statistics.data.gov.uk/doc/local-authority/30UN,Information Services,Peripherals,4248,"Annual Maintenance Contract on AV equipment for period 26/11/19 - 25/11/20, as per quote",11/12/2019,0000451513,"6,268.00",Revenue,AUDITEL,130495
South Ribble Council,http://statistics.data.gov.uk/doc/local-authority/30UN,Property Services,Rep & Maint Premises,2020,please attend ADDRESS REDACTED and replace the external doors that are broken as per NAME REDACTED instructions,11/12/2019,0000451521,200.00,Revenue,AVALON DOORS & AWNINGS LTD,131051
South Ribble Council,http://statistics.data.gov.uk/doc/local-authority/30UN,Property Services,Rep & Maint Premises,2020,materials,11/12/2019,0000451521,"1,390.00",Revenue,AVALON DOORS & AWNINGS LTD,131051
South Ribble Council,http://statistics.data.gov.uk/doc/local-authority/30UN,Property Services,Rep & Maint Premises,2020,"Bamber Bridge Public Toilets-replace Roller Shutters with new solid galvanised, Powder coated,steel single skin roller shutter doors, canopies",18/12/2019,0000451680,400.00,Revenue,AVALON DOORS & AWNINGS LTD,131051
South Ribble Council,http://statistics.data.gov.uk/doc/local-authority/30UN,Property Services,Rep & Maint Premises,2020,materials,18/12/2019,0000451680,"1,040.00",Revenue,AVALON DOORS & AWNINGS LTD,131051
South Ribble Council,http://statistics.data.gov.uk/doc/local-authority/30UN,Information Services,Printing,4127,6000 x  DL 2nd Class Business Reply Manila Plain Self-Seal  Envelopes - as per your quote 150917,18/12/2019,0000451689,266.00,Revenue,B & D PRINT SERVICES LTD,00015134
South Ribble Council,http://statistics.data.gov.uk/doc/local-authority/30UN,Area 2 - Waste Transport/Eastern & Central Teams,Materials General,4040,1200 assorted letters and numbers as per your estimate 150235A,18/12/2019,0000451691,598.00,Revenue,B & D PRINT SERVICES LTD,00015134
South Ribble Council,http://statistics.data.gov.uk/doc/local-authority/30UN,Area 2 - Waste Transport/Eastern & Central Teams,Capital Expenditure,C230,Install supply to new Ad blue tank based in the yard at Moss Side Depot as per your quotation,11/12/2019,0000451329,470.48,Revenue,BELEC ELECTRICAL LTD,130290
South Ribble Council,http://statistics.data.gov.uk/doc/local-authority/30UN,Property Services,Rep & Maint Premises,2020,Please attend Civic Centre and replace lights in the leader/cabinet office to LED as per NAME REDACTED,11/12/2019,0000451342,529.50,Revenue,BELEC ELECTRICAL LTD,130290
South Ribble Council,http://statistics.data.gov.uk/doc/local-authority/30UN,Property Services,Rep & Maint Premises,2020,Please attend the Civic Centre to remove and replace the trunking to the leader/cabinet room,11/12/2019,0000451463,623.51,Revenue,BELEC ELECTRICAL LTD,130290
South Ribble Council,http://statistics.data.gov.uk/doc/local-authority/30UN,Property Services,Rep & Maint Premises,2020,Please attend the market to sort a temporary electricity supply the market for the Christmas light ``switch on.,11/12/2019,0000451463,395.23,Revenue,BELEC ELECTRICAL LTD,130290
South Ribble Council,http://statistics.data.gov.uk/doc/local-authority/30UN,Property Services,Rep & Maint Premises,2020,"Please attend the Civic centre to install double plug sockets to the Cross, Paddock, Wheel & Ribble rooms for the water machines",11/12/2019,0000451463,613.50,Revenue,BELEC ELECTRICAL LTD,130290
South Ribble Council,http://statistics.data.gov.uk/doc/local-authority/30UN,Area 3 - Parks/Leyland East West,Capital Expenditure,C230,Alter socket circuit to supply power to extra desks in the main office at Moss Side Depot.  Re-route IT cables and incorporate into wall trunking ,20/12/2019,0000451828,505.20,Revenue,BELEC ELECTRICAL LTD,130290
South Ribble Council,http://statistics.data.gov.uk/doc/local-authority/30UN,Property Services,Rep & Maint Premises,2020,To replace 7 x exiting lights in the main stores and 1 x store room light at Moss Side Depot as per quotation,20/12/2019,0000451840,473.00,Revenue,BELEC ELECTRICAL LTD,130290
South Ribble Council,http://statistics.data.gov.uk/doc/local-authority/30UN,Area 2 - Waste Transport/Eastern & Central Teams,Operational Furniture & Equip,4010,Jasic Plasma 60 3 phase plasma cutter (cut clean 20mm & 25mm severance) with 5 year warranty,04/12/2019,0000451243,"1,153.00",Revenue,BOC GASES,00015147
South Ribble Council,http://statistics.data.gov.uk/doc/local-authority/30UN,Information Services,Peripherals,4247,FO65 final bill,20/12/2019,0000451831,408.56,Revenue,BRITISH TELECOMMUNICATIONS PLC,00015451
South Ribble Council,http://statistics.data.gov.uk/doc/local-authority/30UN,Neighbourhood Admin & Support,Materials General,4040,HANSON FAST SET POST MIX  20kg - 02110336 DELIVER TO WORDEN PARK,04/12/2019,0000451359,260.40,Revenue,C & W BERRY LTD,00015231
South Ribble Council,http://statistics.data.gov.uk/doc/local-authority/30UN,Area 3 - Parks/Leyland East West,Materials General,4040,Grab bag Grade 1 Top Soil,20/12/2019,0000451580,374.48,Revenue,C & W BERRY LTD,00015231
South Ribble Council,http://statistics.data.gov.uk/doc/local-authority/30UN,Healthy Communities,Sports Dev Expenses,4894,For the provision of 5 places on the gymnastics activity course @ 399 each,11/12/2019,0000451497,"1,995.00",Revenue,Chorley School Sport Partnership,132992
South Ribble Council,http://statistics.data.gov.uk/doc/local-authority/30UN,Property Services,Rep & Maint Premises,2020,"To supply & install and upgrade to the CCTV system at Moss Side Depot, Bison Place, Leyland as per quotation No 666801",18/12/2019,0000451257,"8,802.00",Revenue,CHUBB LTD,00090625
South Ribble Council,http://statistics.data.gov.uk/doc/local-authority/30UN,Property Services,Rep & Maint Premises,2020,2019 / 2020 fees for the service of the gas suppression system at the Civic Centre - ref SQCMMB050319-A,11/12/2019,0000451369,312.00,Revenue,CHUBB LTD,00090625
South Ribble Council,http://statistics.data.gov.uk/doc/local-authority/30UN,Housing,Cap Grant- Improve Grants,C570,DFG WORKS TO BATHROOM AT ADDRESS REDACTED  QUOTE SUPPLIED OF 5016.00 CLIENT CONTRIBUTION 588.13 GRANT 4427.87,11/12/2019,0000451578,"4,427.87",Revenue,Cornerstone Building & Maintenance Ltd,131383
South Ribble Council,http://statistics.data.gov.uk/doc/local-authority/30UN,Homelessness,Contributions,4730,Rent bond in respect of NAME REDACTED - ADDRESS REDACTED,06/12/2019,0000451498,490.00,Revenue,NAME REDACTED,133004
South Ribble Council,http://statistics.data.gov.uk/doc/local-authority/30UN,Revenues Plus,Postage,4291,Postage for October to December 2019,06/12/2019,0000451459,445.91,Revenue,CRITIQOM,131053
South Ribble Council,http://statistics.data.gov.uk/doc/local-authority/30UN,Revenues Plus,Postage,4291,Postage for October to December 2019,18/12/2019,0000451606,362.68,Revenue,CRITIQOM,131053
South Ribble Council,http://statistics.data.gov.uk/doc/local-authority/30UN,Revenues Plus,Postage,4291,Postage for October to December 2019,20/12/2019,0000451852,305.90,Revenue,CRITIQOM,131053
South Ribble Council,http://statistics.data.gov.uk/doc/local-authority/30UN,Housing,Cap Grant- Improve Grants,C570,"DFG WORKS TO BATHROOM AT ADDRESS REDACTED QUOTE 4960.00, CUSTOMER TO PAY 200 GRANT 4760.00",20/12/2019,0000451747,"4,365.00",Revenue,Croston Plumbing & Heating Ltd,131545
South Ribble Council,http://statistics.data.gov.uk/doc/local-authority/30UN,Homelessness,Contributions,4730,Quotation for works spec ADDRESS REDACTED Quote no: 4928,20/12/2019,0000451865,"4,400.00",Revenue,Croston Plumbing & Heating Ltd,131545
South Ribble Council,http://statistics.data.gov.uk/doc/local-authority/30UN,Property Services,Rep & Maint Premises,2020,Annual Contract for maintenance 2019/2020 of 1 x  McSmart 240cr Industrial Water Chiller  and 1 x McQuay Air Handling Unit  as agreed,20/12/2019,0000451867,540.75,Revenue,DAIKIN APPLIED SERVICE,130324
South Ribble Council,http://statistics.data.gov.uk/doc/local-authority/30UN,Housing,Cap Grant- Improve Grants,C570,DFG WORKS TO BATHROOM AT ADDRESS REDACTED PER QUOTE SUPPLIED BY PLACES FOR PEOPLE OF 3410.00 COST 3410.00,04/12/2019,0000451466,"3,850.00",Revenue,Dasco Construction Ltd,132912
South Ribble Council,http://statistics.data.gov.uk/doc/local-authority/30UN,Healthy Communities,Sports Dev Expenses,4894,Bikeability training on 4th Nov- Lostock Hall Academy & Moss Side. 13th  & 14th Nov-Worden Park & Walton Le Dale Primary. ,11/12/2019,0000451520,270.00,Revenue,David Evans,132686
South Ribble Council,http://statistics.data.gov.uk/doc/local-authority/30UN,Area 2 - Waste Transport/Eastern & Central Teams,Materials General,4040,2 X TRACK ROD ENDS + STEERING CYLINDER JOINT - VO65KRD - JFC13683,04/12/2019,0000451204,562.69,Revenue,DENNIS EAGLE LTD,00019774
South Ribble Council,http://statistics.data.gov.uk/doc/local-authority/30UN,Area 2 - Waste Transport/Eastern & Central Teams,Materials General,4040,"1x air bag, 1x air tank and straps, VU60 HLE, JFC13698, (NAME REDACTED)",04/12/2019,0000451224,666.43,Revenue,DENNIS EAGLE LTD,00019774
South Ribble Council,http://statistics.data.gov.uk/doc/local-authority/30UN,Area 2 - Waste Transport/Eastern & Central Teams,External Contractors Charges,4570,SPEC REPAIR - VO65KRF - JFC13580,04/12/2019,0000451335,408.86,Revenue,DENNIS EAGLE LTD,00019774
South Ribble Council,http://statistics.data.gov.uk/doc/local-authority/30UN,Area 2 - Waste Transport/Eastern & Central Teams,Materials General,4040,1 intercooler VO65KPY JFC13700,06/12/2019,0000451364,639.59,Revenue,DENNIS EAGLE LTD,00019774
South Ribble Council,http://statistics.data.gov.uk/doc/local-authority/30UN,Area 2 - Waste Transport/Eastern & Central Teams,Materials General,4040,"1 bump stop, 2 track rod ends, 1 corner bumper, seat belt stalk, 1 filter kit VO65 KRE JFC13703",06/12/2019,0000451420,885.83,Revenue,DENNIS EAGLE LTD,00019774
South Ribble Council,http://statistics.data.gov.uk/doc/local-authority/30UN,Area 2 - Waste Transport/Eastern & Central Teams,Materials General,4040,PUMP VO65KPY JFC 13739,11/12/2019,0000451493,"1,330.94",Revenue,DENNIS EAGLE LTD,00019774
South Ribble Council,http://statistics.data.gov.uk/doc/local-authority/30UN,Area 2 - Waste Transport/Eastern & Central Teams,Materials General,4040,THROTTLE BODY VO65KPY JFC 13739,11/12/2019,0000451493,307.89,Revenue,DENNIS EAGLE LTD,00019774
South Ribble Council,http://statistics.data.gov.uk/doc/local-authority/30UN,Area 2 - Waste Transport/Eastern & Central Teams,Materials General,4040,GASKET VO65KPY JFC 13739,11/12/2019,0000451493,18.97,Revenue,DENNIS EAGLE LTD,00019774
South Ribble Council,http://statistics.data.gov.uk/doc/local-authority/30UN,Area 2 - Waste Transport/Eastern & Central Teams,Materials General,4040,BRACKET VO65KPY JFC 13739,11/12/2019,0000451493,13.66,Revenue,DENNIS EAGLE LTD,00019774
South Ribble Council,http://statistics.data.gov.uk/doc/local-authority/30UN,Area 2 - Waste Transport/Eastern & Central Teams,Materials General,4040,2 X BOLTS VO65KPY JFC 13739,11/12/2019,0000451493,3.59,Revenue,DENNIS EAGLE LTD,00019774
South Ribble Council,http://statistics.data.gov.uk/doc/local-authority/30UN,Area 2 - Waste Transport/Eastern & Central Teams,Materials General,4040,2 X SPACERS VO65KPY JFC 13739,11/12/2019,0000451493,4.22,Revenue,DENNIS EAGLE LTD,00019774
South Ribble Council,http://statistics.data.gov.uk/doc/local-authority/30UN,Area 2 - Waste Transport/Eastern & Central Teams,External Contractors Charges,4570,SPEC REPAIR VO65KPY JFC 13739,13/12/2019,0000451553,378.86,Revenue,DENNIS EAGLE LTD,00019774
South Ribble Council,http://statistics.data.gov.uk/doc/local-authority/30UN,Regeneration,Other Misc,4861,Support for `The Christmas Express` Performance by Double R Arts,11/12/2019,0000451558,500.00,Revenue,DOUBLE R ARTS,130525
South Ribble Council,http://statistics.data.gov.uk/doc/local-authority/30UN,Area 2 - Waste Transport/Eastern & Central Teams,Cap Vehicles,C440,Supply and fit of roof racks for 2 x Peugeot expert compact vans.,11/12/2019,0000451535,700.00,Revenue,E. O`Donnell T/A Trailscot,132964
South Ribble Council,http://statistics.data.gov.uk/doc/local-authority/30UN,Area 2 - Waste Transport/Eastern & Central Teams,Cap Vehicles,C440,To Fit out 2 x Peugeot Expert Compacts as per the quote provided dated 7th October 2019 including ply lining & hand wash.,13/12/2019,0000451543,"3,332.00",Revenue,E. O`Donnell T/A Trailscot,132964
South Ribble Council,http://statistics.data.gov.uk/doc/local-authority/30UN,Area 2 - Waste Transport/Eastern & Central Teams,Cap Vehicles,C440,Supply & fit of roof vents to two Peugeot Expert Compact vans. As per quote supplied 03/12/19.,13/12/2019,0000451583,376.00,Revenue,E. O`Donnell T/A Trailscot,132964
South Ribble Council,http://statistics.data.gov.uk/doc/local-authority/30UN,Shared Assurance Services,Agency Fees,1121,Provision of Temporary Auditor,04/12/2019,0000451108,"1,351.76",Revenue,Eden Brown,132982
South Ribble Council,http://statistics.data.gov.uk/doc/local-authority/30UN,Information Services,Peripherals,4260,01 DEC19,11/12/2019,0000451491,"2,812.59",Revenue,EE Ltd,131653
South Ribble Council,http://statistics.data.gov.uk/doc/local-authority/30UN,Area 2 - Waste Transport/Eastern & Central Teams,External Contractors Charges,4570,3 NEW HYDRALIC PIPE - PJ62UCL - JFC13716,13/12/2019,0000451596,278.71,Revenue,Elite Hydraulic Services Limited,132660
South Ribble Council,http://statistics.data.gov.uk/doc/local-authority/30UN,Information Services,Publications,4142,Subscription renewal for Local Government Chronicle - 5 copies - 2019/20,20/12/2019,0000451830,"1,485.00",Revenue,Emap Publishing Ltd,132932
South Ribble Council,http://statistics.data.gov.uk/doc/local-authority/30UN,Revenues Plus,Stationery,4130,"25,000 white self seal window envelopes for Council Tax",18/12/2019,0000451654,418.75,Revenue,Encore Envelopes Limited,133007
South Ribble Council,http://statistics.data.gov.uk/doc/local-authority/30UN,Housing,Cap Grant- Improve Grants,C570,DFG WORK TO COMPLETE LEVEL ACCESS BATHROOM AT ADDRESS REDACTED AS PLANS/QUOTE OF 5555.00 GRANT 5555.00,20/12/2019,0000451767,"5,555.00",Revenue,EPH Energy,132712
South Ribble Council,http://statistics.data.gov.uk/doc/local-authority/30UN,Area 2 - Waste Transport/Eastern & Central Teams,External Contractors Charges,4570,CYLINDER FOR RESHARPENING - TGM01A3- JFC13526,11/12/2019,0000451295,110.00,Revenue,F R SHARROCK LTD,00034539
South Ribble Council,http://statistics.data.gov.uk/doc/local-authority/30UN,Area 2 - Waste Transport/Eastern & Central Teams,External Contractors Charges,4570,CYCLINDER FOR RESHARPENING - PO16HMV - JFC13530,11/12/2019,0000451295,110.00,Revenue,F R SHARROCK LTD,00034539
South Ribble Council,http://statistics.data.gov.uk/doc/local-authority/30UN,Area 2 - Waste Transport/Eastern & Central Teams,External Contractors Charges,4570,CYLINDER FOR RESHARPENING - MX19JMO - JFC 13525,11/12/2019,0000451295,110.00,Revenue,F R SHARROCK LTD,00034539
South Ribble Council,http://statistics.data.gov.uk/doc/local-authority/30UN,Area 3 - Parks/Leyland East West,External Contractors Charges,4570,HIRE OF FLAIL FOR 8 WEEKS (27/09/2019 - 22/11/2019) @ 360.00 PER WEEK,11/12/2019,0000451410,288.00,Revenue,F R SHARROCK LTD,00034539
South Ribble Council,http://statistics.data.gov.uk/doc/local-authority/30UN,Area 2 - Waste Transport/Eastern & Central Teams,External Contractors Charges,4570,Charge for COTC cover November 2019 - 4 weeks @ 120.00,20/12/2019,0000451719,480.00,Revenue,FCC Environment Services (UK) Ltd,131612
South Ribble Council,http://statistics.data.gov.uk/doc/local-authority/30UN,Area 2 - Waste Transport/Eastern & Central Teams,External Contractors Charges,4570,Residual Waste Collections November 2019,20/12/2019,0000451720,"44,188.02",Revenue,FCC Environment Services (UK) Ltd,131612
South Ribble Council,http://statistics.data.gov.uk/doc/local-authority/30UN,Area 2 - Waste Transport/Eastern & Central Teams,External Contractors Charges,4570,Dry recyclable non-terraced November 2019,20/12/2019,0000451720,"45,238.56",Revenue,FCC Environment Services (UK) Ltd,131612
South Ribble Council,http://statistics.data.gov.uk/doc/local-authority/30UN,Area 2 - Waste Transport/Eastern & Central Teams,External Contractors Charges,4570,Dry recyclable terraced - November 2019,20/12/2019,0000451720,"2,152.65",Revenue,FCC Environment Services (UK) Ltd,131612
South Ribble Council,http://statistics.data.gov.uk/doc/local-authority/30UN,Area 2 - Waste Transport/Eastern & Central Teams,External Contractors Charges,4570,Organic waste (non-terraced) - November 2019,20/12/2019,0000451720,"31,326.88",Revenue,FCC Environment Services (UK) Ltd,131612
South Ribble Council,http://statistics.data.gov.uk/doc/local-authority/30UN,Area 2 - Waste Transport/Eastern & Central Teams,External Contractors Charges,4570,Schedule 2 Properties - November 2019,20/12/2019,0000451720,"1,800.34",Revenue,FCC Environment Services (UK) Ltd,131612
South Ribble Council,http://statistics.data.gov.uk/doc/local-authority/30UN,Area 2 - Waste Transport/Eastern & Central Teams,External Contractors Charges,4570,Commercial waste collections - November 2019,20/12/2019,0000451720,"7,016.08",Revenue,FCC Environment Services (UK) Ltd,131612
South Ribble Council,http://statistics.data.gov.uk/doc/local-authority/30UN,Area 2 - Waste Transport/Eastern & Central Teams,External Contractors Charges,4570,Bulky waste collections - November 2019,20/12/2019,0000451720,973.14,Revenue,FCC Environment Services (UK) Ltd,131612
South Ribble Council,http://statistics.data.gov.uk/doc/local-authority/30UN,Area 2 - Waste Transport/Eastern & Central Teams,External Contractors Charges,4570,Clinical waste collections - November 2019,20/12/2019,0000451720,622.30,Revenue,FCC Environment Services (UK) Ltd,131612
South Ribble Council,http://statistics.data.gov.uk/doc/local-authority/30UN,Area 2 - Waste Transport/Eastern & Central Teams,External Contractors Charges,4570,Replacement bins - November 2019,20/12/2019,0000451720,"5,000.00",Revenue,FCC Environment Services (UK) Ltd,131612
South Ribble Council,http://statistics.data.gov.uk/doc/local-authority/30UN,Area 2 - Waste Transport/Eastern & Central Teams,External Contractors Charges,4570,Additional properties - November 2019,20/12/2019,0000451720,"2,846.81",Revenue,FCC Environment Services (UK) Ltd,131612
South Ribble Council,http://statistics.data.gov.uk/doc/local-authority/30UN,Area 2 - Waste Transport/Eastern & Central Teams,External Contractors Charges,4570,Additional WEEE Collections - November 2019,20/12/2019,0000451720,365.30,Revenue,FCC Environment Services (UK) Ltd,131612
South Ribble Council,http://statistics.data.gov.uk/doc/local-authority/30UN,Area 2 - Waste Transport/Eastern & Central Teams,Balance Sheet,0030,retention recycling,20/12/2019,0000451720,"-2,890.60",Revenue,FCC Environment Services (UK) Ltd,131612
South Ribble Council,http://statistics.data.gov.uk/doc/local-authority/30UN,Area 2 - Waste Transport/Eastern & Central Teams,Balance Sheet,0030,retention collection,20/12/2019,0000451720,"-3,935.90",Revenue,FCC Environment Services (UK) Ltd,131612
South Ribble Council,http://statistics.data.gov.uk/doc/local-authority/30UN,Area 2 - Waste Transport/Eastern & Central Teams,External Contractors Charges,4570,Additional bulky waste collections November 2019,20/12/2019,0000451721,830.83,Revenue,FCC Environment Services (UK) Ltd,131612
South Ribble Council,http://statistics.data.gov.uk/doc/local-authority/30UN,Area 2 - Waste Transport/Eastern & Central Teams,External Contractors Charges,4570,Additional WEEE Collections November 2019,20/12/2019,0000451721,402.79,Revenue,FCC Environment Services (UK) Ltd,131612
South Ribble Council,http://statistics.data.gov.uk/doc/local-authority/30UN,Area 2 - Waste Transport/Eastern & Central Teams,Balance Sheet,0030,retention,20/12/2019,0000451721,-67.85,Revenue,FCC Environment Services (UK) Ltd,131612
South Ribble Council,http://statistics.data.gov.uk/doc/local-authority/30UN,Area 3 - Parks/Leyland East West,Materials General,4040,22 of 1.5m x 100 x 100 posts @ 29.75 each,13/12/2019,0000451571,545.42,Revenue,FILCRIS LTD,130545
South Ribble Council,http://statistics.data.gov.uk/doc/local-authority/30UN,Area 3 - Parks/Leyland East West,Materials General,4040,22 of 2m x 100 x 100 posts @ 39.46 each,13/12/2019,0000451571,723.43,Revenue,FILCRIS LTD,130545
South Ribble Council,http://statistics.data.gov.uk/doc/local-authority/30UN,Area 3 - Parks/Leyland East West,Materials General,4040,CARRIAGE,13/12/2019,0000451571,90.00,Revenue,FILCRIS LTD,130545
South Ribble Council,http://statistics.data.gov.uk/doc/local-authority/30UN,Area 2 - Waste Transport/Eastern & Central Teams,Materials General,4040,"WING ARM, 2 HEAD PIVOT PINS, ASSORTED NUTS/BOLTS, 5 BLADES, 2 ROLLERS, 4 SCRAPERS, HAND WHEEL, TGM01A3 JFC13526",13/12/2019,0000451345,431.52,Revenue,GIBSONS GARDEN MACHINERY LTD,00059051
South Ribble Council,http://statistics.data.gov.uk/doc/local-authority/30UN,Area 2 - Waste Transport/Eastern & Central Teams,Materials General,4040,1 hydraulic pump PF04 ULU JFC13546,11/12/2019,0000451542,394.16,Revenue,GIBSONS GARDEN MACHINERY LTD,00059051
South Ribble Council,http://statistics.data.gov.uk/doc/local-authority/30UN,Area 2 - Waste Transport/Eastern & Central Teams,Materials General,4040,"WING ARM, 2 HEAD PIVOT PINS, ASSORTED NUTS/BOLTS, 5 BLADES, 2 ROLLERS, 4 SCRAPERS, HAND WHEEL, TGM01A3 JFC13526",13/12/2019,0000451653,618.51,Revenue,GIBSONS GARDEN MACHINERY LTD,00059051
South Ribble Council,http://statistics.data.gov.uk/doc/local-authority/30UN,Area 2 - Waste Transport/Eastern & Central Teams,Materials General,4040,5 X SET OF DISC PADS BIN 539,11/12/2019,0000451536,425.00,Revenue,H & J SERVICES LTD,00114446
South Ribble Council,http://statistics.data.gov.uk/doc/local-authority/30UN,Area 2 - Waste Transport/Eastern & Central Teams,Materials General,4040,VARIOUS FILTERS,11/12/2019,0000451544,498.56,Revenue,H & J SERVICES LTD,00114446
South Ribble Council,http://statistics.data.gov.uk/doc/local-authority/30UN,Shared Assurance Services,Agency Fees,1121,Provision of a temporary Auditor,04/12/2019,0000450854,"1,184.90",Revenue,Hays Specialist Recruitment Ltd,132288
South Ribble Council,http://statistics.data.gov.uk/doc/local-authority/30UN,Shared Assurance Services,Agency Fees,1121,Internal Auditor - NAME REDACTED for week ending period 8/11/19 - 27/03/19 (excluding Christmas closedown) ,11/12/2019,0000451081,"1,400.34",Revenue,Hays Specialist Recruitment Ltd,132288
South Ribble Council,http://statistics.data.gov.uk/doc/local-authority/30UN,Shared Assurance Services,Agency Fees,1121,NAME REDACTED - Temporary Head of Shared Assurance Services for week ending period 8/11/2019 - 20/12/2019 ,11/12/2019,0000451082,"2,376.06",Revenue,Hays Specialist Recruitment Ltd,132288
South Ribble Council,http://statistics.data.gov.uk/doc/local-authority/30UN,Shared Assurance Services,Agency Fees,1121,PO-40631  completed in error 11/11/19,04/12/2019,0000451182,"1,093.76",Revenue,Hays Specialist Recruitment Ltd,132288
South Ribble Council,http://statistics.data.gov.uk/doc/local-authority/30UN,Shared Assurance Services,Agency Fees,1121,Internal Auditor - NAME REDACTED for week ending period 8/11/19 - 27/03/19 (excluding Christmas closedown),11/12/2019,0000451372,"1,450.06",Revenue,Hays Specialist Recruitment Ltd,132288
South Ribble Council,http://statistics.data.gov.uk/doc/local-authority/30UN,Shared Financial Services,Balance Sheet,0140,,18/12/2019,0000450869,479.00,Revenue,HM REVENUE & CUSTOMS,00024837
South Ribble Council,http://statistics.data.gov.uk/doc/local-authority/30UN,Shared Financial Services,Balance Sheet,0140,,18/12/2019,0000451189,486.40,Revenue,HM REVENUE & CUSTOMS,00024837
South Ribble Council,http://statistics.data.gov.uk/doc/local-authority/30UN,Housing,Cap Grant- Improve Grants,C570,DFG WORKS TO BATHROOM WORK AT ADDRESS REDACTED AS PER SRBC PLANS QUOTE SUPPLIED 4900.84 GRANT 4900.84,13/12/2019,0000451629,"4,761.84",Revenue,Howard Sutcliff & Son Ltd,132969
South Ribble Council,http://statistics.data.gov.uk/doc/local-authority/30UN,Area 3 - Parks/Leyland East West,Capital Expenditure,C230,"Moss Side Depot - 1st Fl corridor - replace Flooring, Gr Fl corridor & MOT Room - remove flaking paint & scarify surface. Supply and fit Grimebus",20/12/2019,0000451619,"3,169.00",Revenue,HYDE FLOORING CO LTD,00023605
South Ribble Council,http://statistics.data.gov.uk/doc/local-authority/30UN,Area 3 - Parks/Leyland East West,Capital Expenditure,C230,Cost for works outside normal hours,20/12/2019,0000451619,382.00,Revenue,HYDE FLOORING CO LTD,00023605
South Ribble Council,http://statistics.data.gov.uk/doc/local-authority/30UN,Property Services,Rep & Maint Premises,2020,Re: ADDRESS REDACTED � Wet Room as per quotation JD/160 as per NAME REDACTED Take up existing vinyl and remove from site.,20/12/2019,0000451820,479.00,Revenue,HYDE FLOORING CO LTD,00023605
South Ribble Council,http://statistics.data.gov.uk/doc/local-authority/30UN,Information Services,Peripherals,4248,Idox Elections Maintenance Renewal for period 16/01/20 - 15/01/21,13/12/2019,0000451630,"16,367.25",Revenue,IDOX PLC,00104485
South Ribble Council,http://statistics.data.gov.uk/doc/local-authority/30UN,Neighbourhood Admin & Support,Materials General,4040,"30 Bird Mouth Posts 900x100x100, 12 Rails 3600x100x100, 15 Edging Boards 3600x100x25, 75 Wooden Pegs DELIVER TO WORDEN PARK",13/12/2019,0000451548,344.82,Revenue,JOHN HY MAYOR & SONS LTD,00028176
South Ribble Council,http://statistics.data.gov.uk/doc/local-authority/30UN,Area 3 - Parks/Leyland East West,Materials General,4040,40 x 3.6m x 100 x 100 x 50 @ 6.48 each,13/12/2019,0000451551,259.20,Revenue,JOHN HY MAYOR & SONS LTD,00028176
South Ribble Council,http://statistics.data.gov.uk/doc/local-authority/30UN,Area 3 - Parks/Leyland East West,Materials General,4040,264 of 2.1m Decking Boards = 132 of 4.2m board cut in half - 4.2m boards @ 5.78 each,13/12/2019,0000451551,"1,525.92",Revenue,JOHN HY MAYOR & SONS LTD,00028176
South Ribble Council,http://statistics.data.gov.uk/doc/local-authority/30UN,Regeneration,Capital Expenditure,C230,"access improvements, new surfacing and furniture at Wateringpool Lane",18/12/2019,0000451235,"9,904.00",Revenue,John Wade Groundworks Ltd t/a Wade Group,131568
South Ribble Council,http://statistics.data.gov.uk/doc/local-authority/30UN,Regeneration,Capital Expenditure,C230,"access improvements, new surfacing and furniture at Brownedge Close",18/12/2019,0000451236,"3,195.00",Revenue,John Wade Groundworks Ltd t/a Wade Group,131568
South Ribble Council,http://statistics.data.gov.uk/doc/local-authority/30UN,Regeneration,Capital Expenditure,C230,"access improvements, new surfacing and furniture at Todd Lane North 2",18/12/2019,0000451237,"3,973.50",Revenue,John Wade Groundworks Ltd t/a Wade Group,131568
South Ribble Council,http://statistics.data.gov.uk/doc/local-authority/30UN,Regeneration,Capital Expenditure,C230,"access improvements, new surfacing and furniture at Todd Lane North 1",18/12/2019,0000451238,"4,097.50",Revenue,John Wade Groundworks Ltd t/a Wade Group,131568
South Ribble Council,http://statistics.data.gov.uk/doc/local-authority/30UN,Regeneration,Capital Expenditure,C230,"access improvements, new surfacing and furniture at Hennel Lane",18/12/2019,0000451239,"5,353.76",Revenue,John Wade Groundworks Ltd t/a Wade Group,131568
South Ribble Council,http://statistics.data.gov.uk/doc/local-authority/30UN,Regeneration,Capital Expenditure,C230,"access improvements, new surfacing and furniture at Leyland Road",18/12/2019,0000451240,"8,614.14",Revenue,John Wade Groundworks Ltd t/a Wade Group,131568
South Ribble Council,http://statistics.data.gov.uk/doc/local-authority/30UN,Regeneration,External Contractors Charges,4570,"Penwortham:Installation of 2 headwalls either side of pipe, General excavation of surrounding material, new surfacing with timber edgings",18/12/2019,0000451631,"9,182.00",Revenue,John Wade Groundworks Ltd t/a Wade Group,131568
South Ribble Council,http://statistics.data.gov.uk/doc/local-authority/30UN,Planning,Advertising,4841,Public notices for planning application to be published in the Lancashire Evening Post,13/12/2019,0000451421,729.00,Revenue,JPI Media - JOHNSTON PUBLISHING (NORTH WEST),00011345
South Ribble Council,http://statistics.data.gov.uk/doc/local-authority/30UN,Regeneration,Other Misc,4851,Selection boxes,04/12/2019,0000451241,550.00,Revenue,NAME REDACTED,132821
South Ribble Council,http://statistics.data.gov.uk/doc/local-authority/30UN,Homelessness,Contributions,4730,SRBC tenancy support Q2 2019/20 Sept to Nov 2019,06/12/2019,0000451500,"4,875.00",Revenue,KEY UNLOCKING FUTURES LTD,00098601
South Ribble Council,http://statistics.data.gov.uk/doc/local-authority/30UN,Area 2 - Waste Transport/Eastern & Central Teams,Materials General,4040,4000LT X BULK AD BLUE @ 0.22,04/12/2019,0000451291,880.00,Revenue,LANCASHIRE OILS LTD,131167
South Ribble Council,http://statistics.data.gov.uk/doc/local-authority/30UN,Housing,Cap Grant- Improve Grants,C570,DFG WORKS TO SUPPLY AND INSTALL THROUGH FLOOR LIFT AT ADDRESS REDACTED AS PER QUOTE SUPPLIED COST 10191.00,04/12/2019,0000451419,"10,191.00",Revenue,LANCS COUNTY COUNCIL,00041645
South Ribble Council,http://statistics.data.gov.uk/doc/local-authority/30UN,Housing,Cap Grant- Improve Grants,C570,DFG WORKS TO SUPPLY / INSTALL REPLACEMENT STAIRLIFT AT ADDRESS REDACTED AS PER QUOTE BY STANNAH COST 1514.00,04/12/2019,0000451472,"1,514.00",Revenue,LANCS COUNTY COUNCIL,00041645
South Ribble Council,http://statistics.data.gov.uk/doc/local-authority/30UN,Housing,Cap Grant- Improve Grants,C570,DFG WORKS TO SUPPLY AND INSTALL STAIRLIFT AT ADDRESS REDACTED AS PER YOUR QUOTE OF 1350.00,04/12/2019,0000451473,"1,350.00",Revenue,LANCS COUNTY COUNCIL,00041645
South Ribble Council,http://statistics.data.gov.uk/doc/local-authority/30UN,Legal,Other Local Authorities,4530,LAND CHARGES - NOVEMBER 2019,13/12/2019,0000451539,"1,051.00",Revenue,LANCS COUNTY COUNCIL,00041645
South Ribble Council,http://statistics.data.gov.uk/doc/local-authority/30UN,Housing,Cap Grant- Improve Grants,C570,DFG WORKS TO SUPPLY AND INSTALL A HOIST AT ADDRESS REDACTED AS PER QUOTE SUPPLIED OF 1300.00 COST 1300.00,13/12/2019,0000451648,"1,300.00",Revenue,LANCS COUNTY COUNCIL,00041645
South Ribble Council,http://statistics.data.gov.uk/doc/local-authority/30UN,Planning,Contributions,4730,"City Deal CIL � Altcar Lane, Leyland",20/12/2019,0000451773,"1,147,569.81",Revenue,LANCS COUNTY COUNCIL,00041645
South Ribble Council,http://statistics.data.gov.uk/doc/local-authority/30UN,Planning,Contributions,4730,City Deal New Homes Bonus 2019/2020 Qtr 1,20/12/2019,0000451773,"219,770.00",Revenue,LANCS COUNTY COUNCIL,00041645
South Ribble Council,http://statistics.data.gov.uk/doc/local-authority/30UN,Planning,Contributions,4730,City Deal New Homes Bonus 2019/2020 Qtr 2,20/12/2019,0000451773,"219,770.00",Revenue,LANCS COUNTY COUNCIL,00041645
South Ribble Council,http://statistics.data.gov.uk/doc/local-authority/30UN,Planning,Contributions,4730,City Deal New Homes Bonus 2019/2020 Qtr 3,20/12/2019,0000451773,"219,770.00",Revenue,LANCS COUNTY COUNCIL,00041645
South Ribble Council,http://statistics.data.gov.uk/doc/local-authority/30UN,Regeneration,Capital Expenditure,C230,SRBC Donation to Carwood Road PED CYCLE IMPROVEMENT SCHEME,20/12/2019,0000451796,"150,000.00",Revenue,LANCS COUNTY COUNCIL,00041645
South Ribble Council,http://statistics.data.gov.uk/doc/local-authority/30UN,Area 2 - Waste Transport/Eastern & Central Teams,Materials General,4040,1 service pack YD19AUN JFC13702,04/12/2019,0000451361,533.52,Revenue,LANCS DAF,00026424
South Ribble Council,http://statistics.data.gov.uk/doc/local-authority/30UN,Area 2 - Waste Transport/Eastern & Central Teams,Materials General,4040,FULL SERVICE KIT & OIL YD19AUN JFC 13781,13/12/2019,0000451671,372.92,Revenue,LANCS DAF,00026424
South Ribble Council,http://statistics.data.gov.uk/doc/local-authority/30UN,Housing,Capital Expenditure,C230,"TENDER SPECIFICATION TO PLANNING APPROVAL REQUIRMENTS, QS COSTS, REVIEW OF TENDER RETURNS, SITE VISITS / REPORTS ",18/12/2019,0000451697,"2,085.00",Revenue,LEE MCGREGOR LMC ARCHITECTURE LTD,132806
South Ribble Council,http://statistics.data.gov.uk/doc/local-authority/30UN,Housing,Capital Expenditure,C230,non vat,18/12/2019,0000451697,"1,000.00",Revenue,LEE MCGREGOR LMC ARCHITECTURE LTD,132806
South Ribble Council,http://statistics.data.gov.uk/doc/local-authority/30UN,HR & Communications,Training Expense-Course Fees,1402,"NAME REDACTED LEVEL 2 SIA DOOR SUPERVISOR` COURSE - DEC 2019, PRESTON TECHNOLOGY CENTRE, MARSH LANE, PRESTON",04/12/2019,0000451376,160.00,Revenue,Linx Training,132996
South Ribble Council,http://statistics.data.gov.uk/doc/local-authority/30UN,HR & Communications,Training Expense-Course Fees,1402,"NAME REDACTED LEVEL 2 SIA DOOR SUPERVISOR COURSE - JAN 2020 PRESTON TECHNOLOGY CENTRE, MARSH LANE, PRESTON",04/12/2019,0000451376,160.00,Revenue,Linx Training,132996
South Ribble Council,http://statistics.data.gov.uk/doc/local-authority/30UN,HR & Communications,Training Expense-Course Fees,1402,"NAME REDACTED LEVEL 2 SIA DOOR SUPERVISOR` COURSE - FEB 2020 PRESTON TECHNOLOGY CENTRE, MARSH LANE, PRESTON",04/12/2019,0000451376,160.00,Revenue,Linx Training,132996
South Ribble Council,http://statistics.data.gov.uk/doc/local-authority/30UN,Area 3 - Parks/Leyland East West,Grounds Maint Cntrctrs Chgs,4657,Quotation Ref: LAP2253 1x No 905032SP Spring c/w fixings,13/12/2019,0000451378,254.00,Revenue,LUDUS LEISURE LIMITED,00119852
South Ribble Council,http://statistics.data.gov.uk/doc/local-authority/30UN,Area 3 - Parks/Leyland East West,Grounds Maint Cntrctrs Chgs,4657,Carriage,13/12/2019,0000451378,35.00,Revenue,LUDUS LEISURE LIMITED,00119852
South Ribble Council,http://statistics.data.gov.uk/doc/local-authority/30UN,Housing,Cap Grant- Improve Grants,C570,DFG WORKS FOR LEVEL ACCESS BATHROOM AT ADDRESS REDACTED. New progress 50%  grant 50% 2939.49,04/12/2019,0000451479,"2,939.49",Revenue,MAHONEY CONTRACTORS LTD,131271
South Ribble Council,http://statistics.data.gov.uk/doc/local-authority/30UN,Housing,Cap Grant- Improve Grants,C570,DFG WORKS FOR LEVEL ACCESS BATHROOM AT ADDRESS REDACTED . New progress 50% of quote of 6136.74 grant is 3068.37,18/12/2019,0000451708,"3,068.37",Revenue,MAHONEY CONTRACTORS LTD,131271
South Ribble Council,http://statistics.data.gov.uk/doc/local-authority/30UN,Housing,Cap Grant- Improve Grants,C570,DFG WORKS FOR LEVEL ACCESS BATHROOM AT ADDRESS REDACTED . New progress 50%  the grant is 2584.28,18/12/2019,0000451709,"2,584.28",Revenue,MAHONEY CONTRACTORS LTD,131271
South Ribble Council,http://statistics.data.gov.uk/doc/local-authority/30UN,Neighbourhood Admin & Support,Materials General,4040,MERLIN GROVE  37-51,06/12/2019,0000451443,46.00,Revenue,Main Street Signs Ltd,131922
South Ribble Council,http://statistics.data.gov.uk/doc/local-authority/30UN,Neighbourhood Admin & Support,Materials General,4040,JASMINE ROAD  T,06/12/2019,0000451443,28.00,Revenue,Main Street Signs Ltd,131922
South Ribble Council,http://statistics.data.gov.uk/doc/local-authority/30UN,Neighbourhood Admin & Support,Materials General,4040,RENSHAW DRIVE,06/12/2019,0000451443,84.00,Revenue,Main Street Signs Ltd,131922
South Ribble Council,http://statistics.data.gov.uk/doc/local-authority/30UN,Neighbourhood Admin & Support,Materials General,4040,DEAN STREET,06/12/2019,0000451443,10.00,Revenue,Main Street Signs Ltd,131922
South Ribble Council,http://statistics.data.gov.uk/doc/local-authority/30UN,Neighbourhood Admin & Support,Materials General,4040,BROWNEDGE LANE,06/12/2019,0000451443,86.00,Revenue,Main Street Signs Ltd,131922
South Ribble Council,http://statistics.data.gov.uk/doc/local-authority/30UN,Neighbourhood Admin & Support,Materials General,4040,GREEN WAY,06/12/2019,0000451443,76.00,Revenue,Main Street Signs Ltd,131922
South Ribble Council,http://statistics.data.gov.uk/doc/local-authority/30UN,Neighbourhood Admin & Support,Materials General,4040,CLOVERFIELD,06/12/2019,0000451443,164.00,Revenue,Main Street Signs Ltd,131922
South Ribble Council,http://statistics.data.gov.uk/doc/local-authority/30UN,Neighbourhood Admin & Support,Materials General,4040,KENSINGTON AVENUE,06/12/2019,0000451443,322.00,Revenue,Main Street Signs Ltd,131922
South Ribble Council,http://statistics.data.gov.uk/doc/local-authority/30UN,Neighbourhood Admin & Support,Materials General,4040,DELIVERY CHARGE,06/12/2019,0000451443,59.50,Revenue,Main Street Signs Ltd,131922
South Ribble Council,http://statistics.data.gov.uk/doc/local-authority/30UN,Information Services,Peripherals,4247,"Single Channel Recording Licence Upgrade (TDM to VoIP) and support, as per quote ref. 0052638",11/12/2019,0000451379,"1,372.80",Revenue,Maintel Europe Ltd,132500
South Ribble Council,http://statistics.data.gov.uk/doc/local-authority/30UN,Information Services,Peripherals,4248,Annual maintenance as per ref. 257851 for period 27/11/19 - 26/11/20,18/12/2019,0000451418,"9,253.06",Revenue,Maintel Europe Ltd,132500
South Ribble Council,http://statistics.data.gov.uk/doc/local-authority/30UN,Information Services,Peripherals,4247,"Single Channel Recording Licence Upgrade (TDM to VoIP) and support, as per quote ref. 0052638",11/12/2019,0000451422,274.56,Revenue,Maintel Europe Ltd,132500
South Ribble Council,http://statistics.data.gov.uk/doc/local-authority/30UN,Revenues Plus,Capital Expenditure,C234,As per quote 0052638 installation cost 67318 plus 5 years maintenance billed annually cost 9253 x5. Total cost 113583.00,11/12/2019,0000451577,"6,731.80",Revenue,Maintel Europe Ltd,132500
South Ribble Council,http://statistics.data.gov.uk/doc/local-authority/30UN,Property Services,Rep & Maint Premises,2020,Please attend the Civic Centre to undertake works to repair the roof over the paddock room as per estimate,06/12/2019,0000451416,"2,200.00",Revenue,Mick Bamber,132873
South Ribble Council,http://statistics.data.gov.uk/doc/local-authority/30UN,Property Services,Rep & Maint Premises,2020,Please undertake a roof repair to ADDRESS REDACTED as agreed with the facilities officer,18/12/2019,0000451672,800.00,Revenue,Mick Bamber,132873
South Ribble Council,http://statistics.data.gov.uk/doc/local-authority/30UN,Area 1 - Penwortham Western Parishes,Professional Fees,4521,PROVISION OF STRAY DOG SERVICE OCTOBER 2019,11/12/2019,0000451427,318.85,Revenue,MORNINGSIDE KENNELS,00067755
South Ribble Council,http://statistics.data.gov.uk/doc/local-authority/30UN,Area 1 - Penwortham Western Parishes,Professional Fees,4521,PROVISION OF STRAY DOG SERVICE AUGUST 2019,11/12/2019,0000451431,420.65,Revenue,MORNINGSIDE KENNELS,00067755
South Ribble Council,http://statistics.data.gov.uk/doc/local-authority/30UN,Legal,Legal,4821,"PROFESSIONAL ADVICE WITH REGARD TO LAND REAR OF OAKDENE, CHAIN HOUSE LANE, WHITESTAKE (PLANNING) - PUR0040753",06/12/2019,0000451492,"7,600.00",Revenue,Mr Alan Evans,131944
South Ribble Council,http://statistics.data.gov.uk/doc/local-authority/30UN,Housing,Cap Grant- Improve Grants,C570,"DFG work to complete a ramp, door widening and window as per SRBC spec and quote received of 7050.00 total grant 7050",20/12/2019,0000451780,"7,050.00",Revenue,NAME REDACTED,132979
South Ribble Council,http://statistics.data.gov.uk/doc/local-authority/30UN,HR & Communications,Training Expense-Course Fees,1402,NAME REDACTED TO ATTEND PA2A QUAD BIKE WEED CONTROL APPLICATION COURSE ON 12 SEPTEMBER 2019 AT SRBC DEPOT,06/12/2019,0000451426,250.00,Revenue,MYERSCOUGH COLLEGE,00026453
South Ribble Council,http://statistics.data.gov.uk/doc/local-authority/30UN,Information Services,Peripherals,4241,"Cables, 2 iPads and 2 iPad cases, plus delivery as per quote 185105",04/12/2019,0000451380,"1,963.75",Revenue,MYPREMIER LTD,130091
South Ribble Council,http://statistics.data.gov.uk/doc/local-authority/30UN,Development Enterprise & Comm Mgnt,Other Misc,4851,"Per quotation - 11076 Sat 23/11/2019 On Site 9am Dismantle 6.30Pm Hough Lane Leyland PR25 2SB HIRE CONTRACT Delivery Date 23/11/2019
",04/12/2019,0000451355,"2,275.00",Revenue,NATIONWIDE MARQUEE HIRE LTD,130006
South Ribble Council,http://statistics.data.gov.uk/doc/local-authority/30UN,Area 2 - Waste Transport/Eastern & Central Teams,Contract Hire & Lease Costs,3212,HIRE OF RCV FROM 12/12/2019 - 18/12/2019,20/12/2019,0000451750,700.00,Revenue,NAYLORS TRANSPORT (LEYLAND) ltd,00114828
South Ribble Council,http://statistics.data.gov.uk/doc/local-authority/30UN,Neighbourhood Admin & Support,Materials General,4040,10 x Mixed Wire Polybrush 78399/2 @ 112.00,13/12/2019,0000451603,935.00,Revenue,NORTHERN MUNICIPAL SPARES LTD,00117061
South Ribble Council,http://statistics.data.gov.uk/doc/local-authority/30UN,Customer Contact,Operational Furniture & Equip,4010,To Supply 10 Office Chairs to the Gateway Customer Centre,04/12/2019,0000450634,"1,769.50",Revenue,Northern Storage & Interiors Ltd,132814
South Ribble Council,http://statistics.data.gov.uk/doc/local-authority/30UN,Democratic Services,Operational Furniture & Equip,4010,2 X 2000mm RECTANGULAR TRUMPET BASE BOARDROOM TABLE 25 mm TOP BEECH - CODE TB20B,04/12/2019,0000451350,589.00,Revenue,Northern Storage & Interiors Ltd,132814
South Ribble Council,http://statistics.data.gov.uk/doc/local-authority/30UN,Democratic Services,Operational Furniture & Equip,4010,1 X SQUARE TRUMPET BASE BOARDROOM TABLE 25 mm TOP BEECH - CODE TB10B,04/12/2019,0000451350,144.00,Revenue,Northern Storage & Interiors Ltd,132814
South Ribble Council,http://statistics.data.gov.uk/doc/local-authority/30UN,Democratic Services,Operational Furniture & Equip,4010,4 X D-END TRUMPET BASE BOARDROOM TABLE 25mm TOP BEECH - CODE TB10DB,04/12/2019,0000451350,624.00,Revenue,Northern Storage & Interiors Ltd,132814
South Ribble Council,http://statistics.data.gov.uk/doc/local-authority/30UN,Democratic Services,Operational Furniture & Equip,4010,16 X SOLARIS CHROME FRAME CANTILEVER CHAIR IN BLACK MESH WITH UPHOLSTERED SEAT - CODE SOL100C1-K,04/12/2019,0000451350,"1,112.00",Revenue,Northern Storage & Interiors Ltd,132814
South Ribble Council,http://statistics.data.gov.uk/doc/local-authority/30UN,Democratic Services,Operational Furniture & Equip,4010,1 X 800 SYSTEM STORAGE D/DOOR CUPB-BCH - CODE DD8B,04/12/2019,0000451350,219.00,Revenue,Northern Storage & Interiors Ltd,132814
South Ribble Council,http://statistics.data.gov.uk/doc/local-authority/30UN,Democratic Services,Operational Furniture & Equip,4010,3 X ERGO COMFORT STEEL BASE BLACK FABRIC - CODE 9500BLK/R500,04/12/2019,0000451350,444.00,Revenue,Northern Storage & Interiors Ltd,132814
South Ribble Council,http://statistics.data.gov.uk/doc/local-authority/30UN,Democratic Services,Operational Furniture & Equip,4010,"3 X ERGO COMFORT ARMS, OPTION - CODE 0270",04/12/2019,0000451350,86.85,Revenue,Northern Storage & Interiors Ltd,132814
South Ribble Council,http://statistics.data.gov.uk/doc/local-authority/30UN,Democratic Services,Operational Furniture & Equip,4010,DELIVERY AND INSTALLATION,04/12/2019,0000451350,450.00,Revenue,Northern Storage & Interiors Ltd,132814
South Ribble Council,http://statistics.data.gov.uk/doc/local-authority/30UN,Property Services,Rep & Maint Premises,2020,"Please supply 1 x COSHH cupboard ref SU08F/Y 1829(H) x 915(W) x 457(D) yellow to Moss Side Depot 81 Bison Place, Leyland PR26 7QR",11/12/2019,0000451351,338.00,Revenue,Northern Storage & Interiors Ltd,132814
South Ribble Council,http://statistics.data.gov.uk/doc/local-authority/30UN,Neighbourhood Admin & Support,Professional Fees,4514,DEPLOYMENT OF OFFICERS NOVEMBER 2019,11/12/2019,0000451445,"1,427.45",Revenue,NSL LTD,00116868
South Ribble Council,http://statistics.data.gov.uk/doc/local-authority/30UN,Neighbourhood Admin & Support,Other Misc,4855,CASH COLLECTIONS AND RINGO TRANSACTIONS NOVEMBER 2019,11/12/2019,0000451445,331.70,Revenue,NSL LTD,00116868
South Ribble Council,http://statistics.data.gov.uk/doc/local-authority/30UN,Neighbourhood Admin & Support,Other Misc,4855,RINGO CONVENIENCE CHARGE NOVEMBER 2019,11/12/2019,0000451445,246.38,Revenue,NSL LTD,00116868
South Ribble Council,http://statistics.data.gov.uk/doc/local-authority/30UN,Neighbourhood Admin & Support,Professional Fees,4526,PRICE PER CONTRACTED ITEMISED COLLECTION - OTHER,11/12/2019,0000451445,39.66,Revenue,NSL LTD,00116868
South Ribble Council,http://statistics.data.gov.uk/doc/local-authority/30UN,Area 1 - Penwortham Western Parishes,Operational Furniture & Equip,4013,CALL OUT TO ECKROYD STREET P/D,11/12/2019,0000451412,150.00,Revenue,PARKEON LTD,00082918
South Ribble Council,http://statistics.data.gov.uk/doc/local-authority/30UN,Area 1 - Penwortham Western Parishes,Operational Furniture & Equip,4013,LABOUR 0.5 HOURS @ 62.00 PER HOUR,11/12/2019,0000451412,31.00,Revenue,PARKEON LTD,00082918
South Ribble Council,http://statistics.data.gov.uk/doc/local-authority/30UN,Area 1 - Penwortham Western Parishes,Operational Furniture & Equip,4013,COIN INLET & BUTTON D KIT,11/12/2019,0000451412,111.00,Revenue,PARKEON LTD,00082918
South Ribble Council,http://statistics.data.gov.uk/doc/local-authority/30UN,Property Services,Cleaning and Domestic Supplies,2711,"10 boxes of toilet rolls, 5ltr handwash, 4 boxes of hand towels , 2 5ltr multi purpose cleaner, 12 1ltr perfumed toilet cleaner , 6 boxes of binbags",20/12/2019,0000451683,265.62,Revenue,Pattersons (Bristol) Ltd,132621
South Ribble Council,http://statistics.data.gov.uk/doc/local-authority/30UN,Area 2 - Waste Transport/Eastern & Central Teams,Materials General,4040,1200LT X HYD OIL TYPE 32 @ 0.75 PPL,06/12/2019,0000451468,825.75,Revenue,PILKINGTON OILS,00113531
South Ribble Council,http://statistics.data.gov.uk/doc/local-authority/30UN,Housing,Cap Grant- Improve Grants,C570,"DFG WORKS TO BATHROOM AT ADDRESS REDACTED, QUOTE OF 3043.00 - 50% PAID BY ACCENT HOUSING COST 1521.50",13/12/2019,0000451636,"1,521.50",Revenue,Positive Plumbing Solutions Ltd,131562
South Ribble Council,http://statistics.data.gov.uk/doc/local-authority/30UN,Property Services,Rep & Maint Premises,2020,"Penwortham Holme - board over windows as instruction on site, use external boarding/fixings  and place signage/barriers barring access",11/12/2019,0000451567,300.00,Revenue,PSR & Sons Joiners & Building Contractors,132887
South Ribble Council,http://statistics.data.gov.uk/doc/local-authority/30UN,Property Services,Rep & Maint Premises,2020,LABOUR,11/12/2019,0000451567,50.00,Revenue,PSR & Sons Joiners & Building Contractors,132887
South Ribble Council,http://statistics.data.gov.uk/doc/local-authority/30UN,Area 3 - Parks/Leyland East West,Capital Expenditure,C230,Please supply and fit 2 sets of white UPVC double doors and low aluminium thresholds to the Steam Cleaner Sheds at Bison Place ,18/12/2019,0000451677,"1,989.17",Revenue,Raymond Wood Commercial Ltd T/A LDG Contracts,132127
South Ribble Council,http://statistics.data.gov.uk/doc/local-authority/30UN,Area 3 - Parks/Leyland East West,Contract Hire & Lease Costs,3212,2 TONNE DUMPER FOR 4 WEEKS @ 60.00 PER WEEK,04/12/2019,0000450921,690.00,Revenue,Readyplant Limited,131535
South Ribble Council,http://statistics.data.gov.uk/doc/local-authority/30UN,Area 3 - Parks/Leyland East West,Contract Hire & Lease Costs,3212,3 TONNE EXCAVATOR FOR 4 WEEKS @ 190.00 PER WEEK,04/12/2019,0000451214,790.00,Revenue,Readyplant Limited,131535
South Ribble Council,http://statistics.data.gov.uk/doc/local-authority/30UN,Property Services,Rep & Maint Premises,2020,"Worden Park, relay drains from Cross Road Toilets to existing manhole across concrete slab. 30 metres of 110 mm plastic pipe, extra manhole ",20/12/2019,0000451482,"1,680.00",Revenue,RED ROSE BUILDING MAINTENANCE,00085410
South Ribble Council,http://statistics.data.gov.uk/doc/local-authority/30UN,Property Services,Rep & Maint Premises,2020,Please attend Worden Park and repair the manhole/water meter as per NAME REDACTED,20/12/2019,0000451482,30.00,Revenue,RED ROSE BUILDING MAINTENANCE,00085410
South Ribble Council,http://statistics.data.gov.uk/doc/local-authority/30UN,Property Services,Rep & Maint Premises,2020,MATERIAL,20/12/2019,0000451482,"1,490.00",Revenue,RED ROSE BUILDING MAINTENANCE,00085410
South Ribble Council,http://statistics.data.gov.uk/doc/local-authority/30UN,Property Services,Rep & Maint Premises,2020,Please supply a tanker to empty the sceptic tank at Penwortham Holme,18/12/2019,0000451625,120.00,Revenue,RED ROSE BUILDING MAINTENANCE,00085410
South Ribble Council,http://statistics.data.gov.uk/doc/local-authority/30UN,Property Services,Rep & Maint Premises,2020,materials,18/12/2019,0000451625,350.00,Revenue,RED ROSE BUILDING MAINTENANCE,00085410
South Ribble Council,http://statistics.data.gov.uk/doc/local-authority/30UN,Property Services,Rep & Maint Premises,2020,Please attend Leyland Market - flagging  and the internal work (fitting airbrick and making good) concreting a soakaway as per NAME REDACTED,20/12/2019,0000451788,720.00,Revenue,RED ROSE BUILDING MAINTENANCE,00085410
South Ribble Council,http://statistics.data.gov.uk/doc/local-authority/30UN,Property Services,Rep & Maint Premises,2020,materials,20/12/2019,0000451788,120.00,Revenue,RED ROSE BUILDING MAINTENANCE,00085410
South Ribble Council,http://statistics.data.gov.uk/doc/local-authority/30UN,Homelessness,Contractors Charges 5,5311,"NAME REDACTED rent payments Jan, Feb and March 2020",13/12/2019,0000451623,"5,624.90",Revenue,REDDY & CO,00108177
South Ribble Council,http://statistics.data.gov.uk/doc/local-authority/30UN,Property Services,Energy Costs,2301,"Please supply 1,000 litres of gas oil to Worden park PR25 1DJ",04/12/2019,0000451385,629.50,Revenue,RIBBLE FUEL OILS,00047461
South Ribble Council,http://statistics.data.gov.uk/doc/local-authority/30UN,Property Services,Energy Costs,2301,"Please supply 2,500 litres of  gas oil to worden park PR25 1DJ contact NAME REDACTED prior to attending site",18/12/2019,0000451673,"1,548.75",Revenue,RIBBLE FUEL OILS,00047461
South Ribble Council,http://statistics.data.gov.uk/doc/local-authority/30UN,Healthy Communities,Advertising,4842,Bikeability Training at New Longton Primary in September Cost - 942.50,13/12/2019,0000451660,942.50,Revenue,RiderEvolution Ltd,132954
South Ribble Council,http://statistics.data.gov.uk/doc/local-authority/30UN,Area 3 - Parks/Leyland East West,Grounds Maint Cntrctrs Chgs,4657,8 x 5l QUALGEX @ 45.00 each Delivery 10.75,20/12/2019,0000451787,185.37,Revenue,RIGBY TAYLOR LTD,00033145
South Ribble Council,http://statistics.data.gov.uk/doc/local-authority/30UN,Area 3 - Parks/Leyland East West,Materials General,4040,8 x 5l QUALGEX @ 45.00 each Delivery 10.75,20/12/2019,0000451787,92.69,Revenue,RIGBY TAYLOR LTD,00033145
South Ribble Council,http://statistics.data.gov.uk/doc/local-authority/30UN,Area 3 - Parks/Leyland East West,Materials General,4040,8 x 5l QUALGEX @ 45.00 each Delivery 10.75,20/12/2019,0000451787,92.69,Revenue,RIGBY TAYLOR LTD,00033145
South Ribble Council,http://statistics.data.gov.uk/doc/local-authority/30UN,Regeneration,Other Misc,4861,"Leyland Christmas Festival Road Closure on Saturday 23 November between 7am & 9pm along Hough Lane, Leyland, as agreed",11/12/2019,0000451511,620.00,Revenue,Road Safety Services LTD,131989
South Ribble Council,http://statistics.data.gov.uk/doc/local-authority/30UN,Planning,Professional Fees,4510,"Viability Review for Former Gas Works, Lostock Hall",13/12/2019,0000451589,"4,750.00",Revenue,Roger Hannah Ltd,132975
South Ribble Council,http://statistics.data.gov.uk/doc/local-authority/30UN,HR & Communications,Payroll Suspense,1741,MEMBERSHIP RENEWAL SUBSCRIPTION FOR NAME REDACTED REF: 40048 FOR 1 JANUARY - 31 DECEMBER 2020,04/12/2019,0000451387,315.00,Revenue,RTPI,00033491
South Ribble Council,http://statistics.data.gov.uk/doc/local-authority/30UN,HR & Communications,Payroll Suspense,1741,MEMBERSHIP RENEWAL SUBSCRIPTION FOR NAME REDACTED REF: 34830 - 1 JANUARY - 31 DECEMBER 2020,04/12/2019,0000451388,315.00,Revenue,RTPI,00033491
South Ribble Council,http://statistics.data.gov.uk/doc/local-authority/30UN,HR & Communications,Payroll Suspense,1741,MEMBERSHIP RENEWAL SUBSCRIPTION FOR NAME REDACTED REF: 56607 FOR 1 JANUARY - 31 DECEMBER 2020,04/12/2019,0000451389,315.00,Revenue,RTPI,00033491
South Ribble Council,http://statistics.data.gov.uk/doc/local-authority/30UN,HR & Communications,Payroll Suspense,1741,MEMBERSHIP RENEWAL SUBSCRIPTION FOR NAME REDACTED REF: 34367 FOR 1 JANUARY - 31 DECEMBER 2020,04/12/2019,0000451390,315.00,Revenue,RTPI,00033491
South Ribble Council,http://statistics.data.gov.uk/doc/local-authority/30UN,HR & Communications,Payroll Suspense,1741,MEMBERSHIP RENEWAL SUBSCRIPTION FOR NAME REDACTED REF: 52069 FOR 1 JANUARY - 31 DECEMBER 2020,04/12/2019,0000451391,315.00,Revenue,RTPI,00033491
South Ribble Council,http://statistics.data.gov.uk/doc/local-authority/30UN,Property Services,Energy Costs,2303,14/8/19 to 8/11/19,20/12/2019,0000451795,"3,153.47",Revenue,SCOTTISH HYDRO ELECTRIC,130051
South Ribble Council,http://statistics.data.gov.uk/doc/local-authority/30UN,Property Services,Energy Costs,2307,CCL,20/12/2019,0000451795,206.49,Revenue,SCOTTISH HYDRO ELECTRIC,130051
South Ribble Council,http://statistics.data.gov.uk/doc/local-authority/30UN,Information Services,Peripherals,4245,Generator Remedial Works - as per your quote 36162,11/12/2019,0000451576,480.00,Revenue,SECURE POWER LTD,131336
South Ribble Council,http://statistics.data.gov.uk/doc/local-authority/30UN,Area 3 - Parks/Leyland East West,Materials General,4040,car damage,11/12/2019,0000451455,275.00,Revenue,NAME REDACTED,133002
South Ribble Council,http://statistics.data.gov.uk/doc/local-authority/30UN,Information Services,Professional Fees,4520,Shredding of Confidential Waste 2019/20,06/12/2019,0000451444,330.34,Revenue,SHRED-IT LTD,00109134
South Ribble Council,http://statistics.data.gov.uk/doc/local-authority/30UN,Information Services,Professional Fees,4520,Shredding of Confidential Waste 2019/20,20/12/2019,0000451740,291.79,Revenue,SHRED-IT LTD,00109134
South Ribble Council,http://statistics.data.gov.uk/doc/local-authority/30UN,Neighbourhood Admin & Support,Clothing- Uniforms & Laundry,4410,BOOTS � ROCKFALL EBONITE -SIZE 8 - FROCKEBON,20/12/2019,0000451854,69.80,Revenue,SMART IMAGE WORKWEAR,00031503
South Ribble Council,http://statistics.data.gov.uk/doc/local-authority/30UN,Neighbourhood Admin & Support,Clothing- Uniforms & Laundry,4410,WATERPROOF TROUSERS (B-DRI) - BLUE (medium) -,20/12/2019,0000451854,25.00,Revenue,SMART IMAGE WORKWEAR,00031503
South Ribble Council,http://statistics.data.gov.uk/doc/local-authority/30UN,Neighbourhood Admin & Support,Clothing- Uniforms & Laundry,4410,WATERPROOF TROUSERS - SUPERTOUCH 18B4 YELLOW - EXTRA LARGE -,20/12/2019,0000451854,36.45,Revenue,SMART IMAGE WORKWEAR,00031503
South Ribble Council,http://statistics.data.gov.uk/doc/local-authority/30UN,Neighbourhood Admin & Support,Clothing- Uniforms & Laundry,4410,LADIES FLEECE - SIZE 12 EMBROIDERY L/B LOGO - UC608,20/12/2019,0000451854,23.80,Revenue,SMART IMAGE WORKWEAR,00031503
South Ribble Council,http://statistics.data.gov.uk/doc/local-authority/30UN,Neighbourhood Admin & Support,Clothing- Uniforms & Laundry,4410,BALLISTIC TROUSERS - NAVY ORN VULTURE 34`` Short Leg,20/12/2019,0000451854,19.95,Revenue,SMART IMAGE WORKWEAR,00031503
South Ribble Council,http://statistics.data.gov.uk/doc/local-authority/30UN,Neighbourhood Admin & Support,Clothing- Uniforms & Laundry,4410,BALLISTIC TROUSERS - NAVY ORN VULTURE 34`` LONG LEG,20/12/2019,0000451854,39.90,Revenue,SMART IMAGE WORKWEAR,00031503
South Ribble Council,http://statistics.data.gov.uk/doc/local-authority/30UN,Neighbourhood Admin & Support,Clothing- Uniforms & Laundry,4410,SWEATSHIRT NAVY - UNEEK UC203 c/w SRBC LOGO LARGE -  SSUC203,20/12/2019,0000451854,18.90,Revenue,SMART IMAGE WORKWEAR,00031503
South Ribble Council,http://statistics.data.gov.uk/doc/local-authority/30UN,Neighbourhood Admin & Support,Clothing- Uniforms & Laundry,4410,WATERPROOF TROUSERS - SUPERTOUCH 18B4 YELLOW - LARGE - HVJYST18B4,20/12/2019,0000451854,60.75,Revenue,SMART IMAGE WORKWEAR,00031503
South Ribble Council,http://statistics.data.gov.uk/doc/local-authority/30UN,Information Services,Peripherals,4247,"Renewal of Veritas products, as per quote 503619",04/12/2019,0000451406,"1,999.00",Revenue,SOFTWARE RENEWAL CENTRE,00112189
South Ribble Council,http://statistics.data.gov.uk/doc/local-authority/30UN,Healthy Communities,Other Grants and Subscriptions,4741,Annual Professional Support Grant 2019 - 2020,06/12/2019,0000451400,"22,930.65",Revenue,SOUTH RIBBLE COMMUNITY LEISURE LTD,00095002
South Ribble Council,http://statistics.data.gov.uk/doc/local-authority/30UN,Property Services,Consultancy Fees,4532,Leisure Services Fee 2019/2020,18/12/2019,0000451657,"22,748.00",Revenue,SOUTH RIBBLE COMMUNITY LEISURE LTD,00094210
South Ribble Council,http://statistics.data.gov.uk/doc/local-authority/30UN,Property Services,Consultancy Fees,4532,Leisure Services Fee 2019/2020,18/12/2019,0000451658,"22,748.00",Revenue,SOUTH RIBBLE COMMUNITY LEISURE LTD,00094210
South Ribble Council,http://statistics.data.gov.uk/doc/local-authority/30UN,Property Services,Consultancy Fees,4532,Leisure Services Fee 2019/2020,18/12/2019,0000451659,"22,748.00",Revenue,SOUTH RIBBLE COMMUNITY LEISURE LTD,00094210
South Ribble Council,http://statistics.data.gov.uk/doc/local-authority/30UN,Shared Financial Services,Balance Sheet,0030,monthly deductions from payroll,04/12/2019,0000451245,"1,525.77",Revenue,SOUTH RIBBLE LABOUR PARTY LOCAL GOVERNM,00120663
South Ribble Council,http://statistics.data.gov.uk/doc/local-authority/30UN,Area 2 - Waste Transport/Eastern & Central Teams,Materials General,4040,6 X REAR LIGHTS BIN 1081,04/12/2019,0000451011,570.00,Revenue,SPALDINGS,00070849
South Ribble Council,http://statistics.data.gov.uk/doc/local-authority/30UN,Area 2 - Waste Transport/Eastern & Central Teams,Materials General,4040,27 X CYLINDER SEAL BIN 1109,04/12/2019,0000451011,129.60,Revenue,SPALDINGS,00070849
South Ribble Council,http://statistics.data.gov.uk/doc/local-authority/30UN,Area 2 - Waste Transport/Eastern & Central Teams,Materials General,4040,6 X ADJUSTING ROD BIN 1111,04/12/2019,0000451011,156.50,Revenue,SPALDINGS,00070849
South Ribble Council,http://statistics.data.gov.uk/doc/local-authority/30UN,Area 2 - Waste Transport/Eastern & Central Teams,Materials General,4040,200 X SOLE PLATE SCREWS BIN 1114,04/12/2019,0000451011,40.00,Revenue,SPALDINGS,00070849
South Ribble Council,http://statistics.data.gov.uk/doc/local-authority/30UN,Area 2 - Waste Transport/Eastern & Central Teams,Materials General,4040,4 X PIV0T BOLTS BIN 1122,04/12/2019,0000451011,48.00,Revenue,SPALDINGS,00070849
South Ribble Council,http://statistics.data.gov.uk/doc/local-authority/30UN,Area 2 - Waste Transport/Eastern & Central Teams,Materials General,4040,10 X PIVOT PINS BIN 1124,04/12/2019,0000451011,127.50,Revenue,SPALDINGS,00070849
South Ribble Council,http://statistics.data.gov.uk/doc/local-authority/30UN,Area 2 - Waste Transport/Eastern & Central Teams,Materials General,4040,54 X CYLINDER BEARING BIN 1138,04/12/2019,0000451011,4.95,Revenue,SPALDINGS,00070849
South Ribble Council,http://statistics.data.gov.uk/doc/local-authority/30UN,Area 2 - Waste Transport/Eastern & Central Teams,Materials General,4040,4 X DECK HEAD PIN BIN 1252,04/12/2019,0000451011,72.00,Revenue,SPALDINGS,00070849
South Ribble Council,http://statistics.data.gov.uk/doc/local-authority/30UN,Area 2 - Waste Transport/Eastern & Central Teams,Materials General,4040,4 X BOTTOM BLOCKS BIN 1256,04/12/2019,0000451011,970.00,Revenue,SPALDINGS,00070849
South Ribble Council,http://statistics.data.gov.uk/doc/local-authority/30UN,Area 2 - Waste Transport/Eastern & Central Teams,Materials General,4040,10 X SCRAPER WIRES BIN 1264,04/12/2019,0000451011,75.00,Revenue,SPALDINGS,00070849
South Ribble Council,http://statistics.data.gov.uk/doc/local-authority/30UN,Area 2 - Waste Transport/Eastern & Central Teams,Materials General,4040,27 X SOLE PLATES BIN 1265,04/12/2019,0000451011,581.85,Revenue,SPALDINGS,00070849
South Ribble Council,http://statistics.data.gov.uk/doc/local-authority/30UN,Area 2 - Waste Transport/Eastern & Central Teams,Materials General,4040,2 X LH GUARD DEFLECTOR PLATES BIN 12678,04/12/2019,0000451011,78.00,Revenue,SPALDINGS,00070849
South Ribble Council,http://statistics.data.gov.uk/doc/local-authority/30UN,Area 2 - Waste Transport/Eastern & Central Teams,Materials General,4040,4 X CYLINDER ROLLER BIN 1268,04/12/2019,0000451011,176.00,Revenue,SPALDINGS,00070849
South Ribble Council,http://statistics.data.gov.uk/doc/local-authority/30UN,Area 2 - Waste Transport/Eastern & Central Teams,Materials General,4040,4 X BLADE CYLINDER BIN 1293,04/12/2019,0000451011,277.50,Revenue,SPALDINGS,00070849
South Ribble Council,http://statistics.data.gov.uk/doc/local-authority/30UN,Area 2 - Waste Transport/Eastern & Central Teams,Materials General,4040,6 X BLADED CYLINDER BIN 1239A,04/12/2019,0000451011,"2,366.00",Revenue,SPALDINGS,00070849
South Ribble Council,http://statistics.data.gov.uk/doc/local-authority/30UN,Shared Financial Services,Balance Sheet,0030,monthly deds from payroll,04/12/2019,0000451247,399.28,Revenue,ST CATHERINES HOSPICE PROMOTIONS LTD,00057749
South Ribble Council,http://statistics.data.gov.uk/doc/local-authority/30UN,Property Services,Vehicle Running Costs,3134,"2,500lts Gas Oil @56.06pence per litre",06/12/2019,0000451457,"1,400.94",Revenue,Standard Fuel Oils LtdMain,131556
South Ribble Council,http://statistics.data.gov.uk/doc/local-authority/30UN,Neighbourhood Admin & Support,Vehicle Running Costs,3132,"16,000lts DIESEL @ 101.57pence per litre",13/12/2019,0000451643,"16,229.87",Revenue,Standard Fuel Oils LtdMain,131556
South Ribble Council,http://statistics.data.gov.uk/doc/local-authority/30UN,Neighbourhood Admin & Support,Vehicle Running Costs,3132,15000LT X DIESEL (TANK1) @ 100.49 PPL,20/12/2019,0000451678,"15,073.50",Revenue,Standard Fuel Oils LtdMain,131556
South Ribble Council,http://statistics.data.gov.uk/doc/local-authority/30UN,Democratic Services,Capital Expenditure,C230,DESIGN WORK FOR OUR BIG TREE PLANT,06/12/2019,0000451425,295.00,Revenue,STONE CREATE LTD,130896
South Ribble Council,http://statistics.data.gov.uk/doc/local-authority/30UN,Area 3 - Parks/Leyland East West,Cap Vehicles,C440,Hustler Trimstar 36`` Electric Start Rear Discharge Banking Tyres As per quotation supplied by NAME REDACTED,20/12/2019,0000451639,"13,080.00",Revenue,Stuart Taylor,132977
South Ribble Council,http://statistics.data.gov.uk/doc/local-authority/30UN,Property Services,Rep & Maint Premises,2020,Annual Contract for 2019/2020 for the moveable walls x 2  Moveo 2 service visits per year  in the Civic Suite ref SNO-Q  M0173  dated 20.2.2019,20/12/2019,0000451822,500.00,Revenue,STYLE MOVEABLE PARTITION SPECIALISTS,00119917
South Ribble Council,http://statistics.data.gov.uk/doc/local-authority/30UN,Information Services,Peripherals,4246,Retainer for Services for 4 days per month for 6 months @ 650 per day,04/12/2019,0000451401,"2,600.00",Revenue,TechAlign,132535
South Ribble Council,http://statistics.data.gov.uk/doc/local-authority/30UN,Homelessness,Contractors Charges 5,5311,NAME REDACTED - 8 Weeks 20.06.2019 - 15.08.2019,20/12/2019,0000451748,"1,200.00",Revenue,Temporary Housing Solutions Ltd,132118
South Ribble Council,http://statistics.data.gov.uk/doc/local-authority/30UN,Homelessness,Contractors Charges 5,5311,NAME REDACTED - Damages,20/12/2019,0000451748,145.00,Revenue,Temporary Housing Solutions Ltd,132118
South Ribble Council,http://statistics.data.gov.uk/doc/local-authority/30UN,Information Services,Peripherals,4247,"TNP Professional Services - Consultancy for investigation/config of IP phones, as per quote SQ106202",04/12/2019,0000451424,325.00,Revenue,The Networking People (TNP) Ltd,132331
South Ribble Council,http://statistics.data.gov.uk/doc/local-authority/30UN,HR & Communications,Training Expense-Course Fees,1408,6 SESSIONS FOR THERAPY FOR NAME REDACTED,20/12/2019,0000451861,360.00,Revenue,THE THERAPY COMPANY,131955
South Ribble Council,http://statistics.data.gov.uk/doc/local-authority/30UN,Housing,Cap Grant- Improve Grants,C570,DFG WORKS TO SUPPLY AND INSTALL A STARILIFT AT ADDRESS REDACTED PER QUOTE TO NAME REDACTED OF 3949.00,04/12/2019,0000451402,"3,619.00",Revenue,Thyssenkrupp Home Solutions,132911
South Ribble Council,http://statistics.data.gov.uk/doc/local-authority/30UN,Property Services,Rep & Maint Premises,2020,Please carry out works as per your quotation TC2502/19 ref NAMES REDACTED,18/12/2019,0000451403,926.00,Revenue,TIS Networks,132417
South Ribble Council,http://statistics.data.gov.uk/doc/local-authority/30UN,Property Services,Energy Costs,2303,1/11/19 to 30/11/19,13/12/2019,0000451528,"4,523.49",Revenue,Total Gas & power Ltd,132995
South Ribble Council,http://statistics.data.gov.uk/doc/local-authority/30UN,Property Services,Energy Costs,2307,CCL,13/12/2019,0000451528,254.12,Revenue,Total Gas & power Ltd,132995
South Ribble Council,http://statistics.data.gov.uk/doc/local-authority/30UN,Property Services,Energy Costs,2303,1/11/19 to 30/11/19,13/12/2019,0000451529,"2,584.53",Revenue,Total Gas & power Ltd,132995
South Ribble Council,http://statistics.data.gov.uk/doc/local-authority/30UN,Property Services,Energy Costs,2307,CCKL,13/12/2019,0000451529,151.21,Revenue,Total Gas & power Ltd,132995
South Ribble Council,http://statistics.data.gov.uk/doc/local-authority/30UN,Property Services,Energy Costs,2303,1/10/19 to 3/11/19,13/12/2019,0000451545,266.30,Revenue,Total Gas & power Ltd,132995
South Ribble Council,http://statistics.data.gov.uk/doc/local-authority/30UN,Property Services,Energy Costs,2307,CCL,13/12/2019,0000451545,13.81,Revenue,Total Gas & power Ltd,132995
South Ribble Council,http://statistics.data.gov.uk/doc/local-authority/30UN,Healthy Communities,Advertising,4842,Scoot Safe booklet x600 =293.00 + VAT,11/12/2019,0000451501,293.00,Revenue,TOWNSEND PRINT SERVICES LTD,00037170
South Ribble Council,http://statistics.data.gov.uk/doc/local-authority/30UN,Area 2 - Waste Transport/Eastern & Central Teams,External Contractors Charges,4570,SPEC REPAIR CE63FJX JFC 13076,11/12/2019,0000451570,395.00,Revenue,Truck Transmissions Ltd,132959
South Ribble Council,http://statistics.data.gov.uk/doc/local-authority/30UN,Regeneration,Other Misc,4851,"Leyland Music Festival Artists 2020 Pat Sharp 1 hour DJ set, T`Pau Full Band Performance, Tony Hadley with Live Band 50% deposit on booking",04/12/2019,0000451474,"17,875.00",Revenue,UK Media Events Ltd,132263
South Ribble Council,http://statistics.data.gov.uk/doc/local-authority/30UN,Revenues Plus,External Contractors Charges,4575,To supply hot meals/sweets on 27th November 2019 @ 9.50 per head for 55 on 27th November 2019,13/12/2019,0000451448,522.50,Revenue,UNIVERSITY OF CENTRAL LANCASHIRE,131183
South Ribble Council,http://statistics.data.gov.uk/doc/local-authority/30UN,Revenues Plus,External Contractors Charges,4575,To supply hot meals/sweets @ 9.50 per head for 35 on 6th November 2019 @ 16.30 to SRBC,13/12/2019,0000451448,332.50,Revenue,UNIVERSITY OF CENTRAL LANCASHIRE,131183
South Ribble Council,http://statistics.data.gov.uk/doc/local-authority/30UN,Revenues Plus,External Contractors Charges,4575,To supply buffet @ 7 per head on 7th November 2019 for 20 @ 16.30 to SRBC,13/12/2019,0000451448,140.00,Revenue,UNIVERSITY OF CENTRAL LANCASHIRE,131183
South Ribble Council,http://statistics.data.gov.uk/doc/local-authority/30UN,Revenues Plus,External Contractors Charges,4575,To supply buffet @7 per head on 13th November 2019 for 20 @ 16.30 to SRBC,13/12/2019,0000451448,140.00,Revenue,UNIVERSITY OF CENTRAL LANCASHIRE,131183
South Ribble Council,http://statistics.data.gov.uk/doc/local-authority/30UN,Revenues Plus,External Contractors Charges,4575,To supply hot meals/sweet @ 9.50 per head on 20th November 2019 for 20 @ 16.30 to SRBC,13/12/2019,0000451448,190.00,Revenue,UNIVERSITY OF CENTRAL LANCASHIRE,131183
South Ribble Council,http://statistics.data.gov.uk/doc/local-authority/30UN,Revenues Plus,External Contractors Charges,4575,To supply buffet @ 7 per head on 22nd November 2019 for 20 @ 12 noon to SRBC,13/12/2019,0000451448,140.00,Revenue,UNIVERSITY OF CENTRAL LANCASHIRE,131183
South Ribble Council,http://statistics.data.gov.uk/doc/local-authority/30UN,Revenues Plus,External Contractors Charges,4575,Northern User Group buffet,13/12/2019,0000451448,571.00,Revenue,UNIVERSITY OF CENTRAL LANCASHIRE,131183
South Ribble Council,http://statistics.data.gov.uk/doc/local-authority/30UN,Healthy Communities,External Contractors Charges,4575,Planning tea 24th April 2019,13/12/2019,0000451604,237.50,Revenue,UNIVERSITY OF CENTRAL LANCASHIRE,131183
South Ribble Council,http://statistics.data.gov.uk/doc/local-authority/30UN,Healthy Communities,External Contractors Charges,4575,Planning Meeting 3rd April 25 @ 9.50 a head,13/12/2019,0000451604,237.50,Revenue,UNIVERSITY OF CENTRAL LANCASHIRE,131183
South Ribble Council,http://statistics.data.gov.uk/doc/local-authority/30UN,Healthy Communities,Provisions,4311,Stock for old and new coffee machines,06/12/2019,0000451282,262.75,Revenue,VENDING ENTERPRISES,00101501
South Ribble Council,http://statistics.data.gov.uk/doc/local-authority/30UN,Property Services,Operational Furniture & Equip,4012,2019 / 2020 annual contract for the monthly rental of hot drinks machines at the civic centre including environmental charge.,13/12/2019,0000451397,408.31,Revenue,VENDING ENTERPRISES,00101501
South Ribble Council,http://statistics.data.gov.uk/doc/local-authority/30UN,Property Services,Professional Fees,4510,Consultancy for period ending 17/11/19,18/12/2019,0000451484,"2,167.76",Revenue,Vivid Resourcing,132999
South Ribble Council,http://statistics.data.gov.uk/doc/local-authority/30UN,Property Services,Professional Fees,4510,Consultancy for period ending 10/11/19,18/12/2019,0000451485,"2,086.91",Revenue,Vivid Resourcing,132999
South Ribble Council,http://statistics.data.gov.uk/doc/local-authority/30UN,Property Services,Professional Fees,4510,Consultancy for the period end 3/11/19,18/12/2019,0000451486,"2,355.92",Revenue,Vivid Resourcing,132999
South Ribble Council,http://statistics.data.gov.uk/doc/local-authority/30UN,Property Services,Professional Fees,4510,Consultancy for the period end 1/12/19,20/12/2019,0000451641,"1,886.50",Revenue,Vivid Resourcing,132999
South Ribble Council,http://statistics.data.gov.uk/doc/local-authority/30UN,Property Services,Water Charges,2511,water supply,20/12/2019,0000451693,369.61,Revenue,WATER PLUS,00029845
South Ribble Council,http://statistics.data.gov.uk/doc/local-authority/30UN,Property Services,Water Charges,2511,trade effluent,20/12/2019,0000451693,112.49,Revenue,WATER PLUS,00029845
South Ribble Council,http://statistics.data.gov.uk/doc/local-authority/30UN,Property Services,Water Charges,2511,used water,20/12/2019,0000451693,"2,206.13",Revenue,WATER PLUS,00029845
South Ribble Council,http://statistics.data.gov.uk/doc/local-authority/30UN,Property Services,Water Charges,2511,water supply,20/12/2019,0000451694,689.77,Revenue,WATER PLUS,00029845
South Ribble Council,http://statistics.data.gov.uk/doc/local-authority/30UN,Property Services,Water Charges,2511,trade effluent,20/12/2019,0000451694,200.10,Revenue,WATER PLUS,00029845
South Ribble Council,http://statistics.data.gov.uk/doc/local-authority/30UN,Property Services,Water Charges,2511,used water,20/12/2019,0000451694,"4,341.10",Revenue,WATER PLUS,00029845
South Ribble Council,http://statistics.data.gov.uk/doc/local-authority/30UN,Property Services,Water Charges,2511,water supply,20/12/2019,0000451695,654.31,Revenue,WATER PLUS,00029845
South Ribble Council,http://statistics.data.gov.uk/doc/local-authority/30UN,Property Services,Water Charges,2511,trade effluent,20/12/2019,0000451695,270.63,Revenue,WATER PLUS,00029845
South Ribble Council,http://statistics.data.gov.uk/doc/local-authority/30UN,Property Services,Water Charges,2511,used water,20/12/2019,0000451695,"2,277.30",Revenue,WATER PLUS,00029845
South Ribble Council,http://statistics.data.gov.uk/doc/local-authority/30UN,Property Services,Water Charges,2511,water supply,20/12/2019,0000451715,356.22,Revenue,WATER PLUS,00029845
South Ribble Council,http://statistics.data.gov.uk/doc/local-authority/30UN,Property Services,Water Charges,2511,trade effluent,20/12/2019,0000451715,108.03,Revenue,WATER PLUS,00029845
South Ribble Council,http://statistics.data.gov.uk/doc/local-authority/30UN,Property Services,Water Charges,2511,used water,20/12/2019,0000451715,"2,134.97",Revenue,WATER PLUS,00029845
